[Event "European Women-ch 2023"]
[Site "Petrovac"]
[Date "2023.03.18"]
[Round "1.6"]
[White "Jarocka, Liwia"]
[Black "Javakhishvili, Lela"]
[Result "0-1"]
[ECO "B32"]
[WhiteElo "2181"]
[BlackElo "2443"]
[Annotator "TA"]
[PlyCount "102"]
[EventDate "2023.03.15"]
[EventType "swiss"]
[EventCountry "MNE"]
[SourceTitle "playchess.com"]
[Source "ChessBase"]
[SourceQuality "1"]
[TimeControl "40/5400+30:1800+30"]

{[%evp 14,102,13,20,29,35,32,22,28,33,29,24,31,47,50,22,33,30,69,62,58,46,71,31,70,0,0,0,0,-89,-69,-80,-63,-61,-12,-78,-49,-85,-74,-74,-35,-41,-36,-40,-47,-41,-50,-58,-58,-58,-60,-91,-57,-90,-60,-188,0,-235,-229,-239,0,-185,-180,-180,-178,-341,-227,-231,-235,-239,-222,-809,-235,-199,-183,-185,-179,-166,-167,-130,-132,-414,-398,-634,-650,-608,-579,-29997,-29998,-29998,-29999]} 1. e4 {[%emt 0:00:04]} c5 {[%emt 0:00:15]} 2. Nf3 {[%emt 0:00:13][%cal Bg1f3,Bf3d4,Bd4b5,Bb5a3,Ba3c2][%mdl 32]} Nc6 {[%emt 0:00:12]} 3. d4 {[%emt 0:01:21]} cxd4 {[%emt 0:00:06]} 4. Nxd4 {[%emt 0:00:05]} e5 {[%emt 0:00:32]} 5. Nb5 {[%emt 0:00:44]} d6 {[%emt 0:00:17]} 6. c4 {[%emt 0:01:59]} Be6 {[%emt 0:01:58]} 7. N1c3 {[%emt 0:06:48]} a6 {[%emt 0:00:29]} 8. Na3 {[%emt 0:00:06]} g6 $1 {[%emt 0:00:39][%mdl 4] is recently more successful than 8...Be7. B32: Sicilian: Löwenthal and Kalashnikov Variations.} 9. Be3 {[%emt 0:02:09]} Nf6 {[%emt 0:01:11][%cal Bg8f6,Bf6h5,Bh5f4][%mdl 32]} 10. Be2 {[%emt 0:01:04] Inhibits Ng4.} Bg7 {[%emt 0:00:30] The position is equal.} 11. Nc2 {[%emt 0:01:40]} O-O {[%emt 0:00:23]} 12. f3 {[%emt 0:04:39]} Rc8 {[%emt 0:02:24]} 13. Qd2 {[%emt 0:03:30]} Nh5 {[%emt 0:19:28]} 14. O-O {[%emt 0:10:55]} (14. g3 $5 {[%cal Re1c1]}) 14... Nf4 {[%emt 0:01:13]} 15. Rfd1 {[%emt 0:06:20] [#]} Na5 $146 {[%emt 0:18:46]} ({Predecessor:} 15... Qg5 16. Bf1 Na5 17. b3 b5 18. Kh1 bxc4 19. b4 Nc6 20. g3 Qh5 21. gxf4 exf4 {1-0 Alexakis,D (2470)-Avramidou,A (2249) Anogia Lasker Memorial 1st 2019 (1)}) 16. b3 $1 {[%emt 0:03:00]} (16. Qxd6 $2 Qxd6 17. Rxd6 Nxe2+ 18. Nxe2 Nxc4 $19) 16... b5 {[%emt 0:00:56][%cal Bb7b5,Bb5c4,Bc4c3][%mdl 32]} 17. Nd5 $1 {[%emt 0:01:48]} ({Don't play} 17. Qxd6 bxc4 18. Qxd8 Rfxd8 19. Rxd8+ Rxd8 20. Bxc4 Nxc4 21. bxc4 Bxc4 $15) 17... bxc4 {[%emt 0:11:27]} 18. Bb6 {[%emt 0:03:09]} c3 {[%emt 0:02:15]} 19. Qe1 {[%emt 0:03:07]} (19. Qxf4 $14 exf4 20. Bxd8 Rcxd8 21. Bxa6 (21. Nxf4 Bc8 $14)) 19... Qg5 $11 {[%emt 0:00:23][%csl Gf4][%cal Rg5g2] The board is on fire.} (19... Nxe2+ $2 20. Qxe2 Qd7 21. Bxa5 $18) 20. Nxf4 {[%emt 0:05:06]} exf4 {[%emt 0:00:12]} 21. Rxd6 {[%emt 0:05:22]} (21. Qf2 $11) 21... Nb7 {[%emt 0:00:56]} 22. Rdd1 {[%emt 0:07:21]} Nc5 $1 {[%emt 0:00:25]} 23. Qf2 $1 {[%emt 0:04:43] [#]} a5 {[%emt 0:05:56]} 24. Rac1 {[%emt 0:06:02]} (24. Bc4 $1 $11) 24... Rc6 {[%emt 0:05:20]} (24... a4 $5 {[%cal Ra4b3]} 25. bxa4 Nxa4 $17) 25. Bxc5 {[%emt 0:05:55]} Rxc5 {[%emt 0:00:10]} 26. Nd4 {[%emt 0:00:40]} Rfc8 {[%emt 0:10:04]} (26... Rd8 $5 {[%cal Re6h3]} 27. Nxe6 fxe6 28. Rxd8+ Qxd8 $15) 27. Nxe6 {[%emt 0:00:31]} fxe6 {[%emt 0:00:02]} 28. Bc4 {[%emt 0:00:26] White is weak on the dark squares} Qe7 {[%emt 0:01:12]} 29. Rd3 {[%emt 0:00:51]} Be5 {[%emt 0:00:38]} 30. Rcd1 {[%emt 0:02:55]} R8c7 {[%emt 0:00:59] Prevents Rd7} 31. Qc2 {[%emt 0:02:30]} Kg7 {[%emt 0:01:17]} 32. a4 {[%emt 0:02:00]} h5 {[%emt 0:05:05]} 33. Kf1 {[%emt 0:01:57]} Kh6 {[%emt 0:01:11]} 34. h3 {[%emt 0:01:15]} ({Better is} 34. Rxc3 $1 $15 Bxc3 35. Qxc3) 34... R5c6 $2 {[%emt 0:01:58]} (34... Rxc4 $1 $19 35. bxc4 Rxc4) 35. Qc1 $2 {[%emt 0:02:42]} (35. Rxc3 $1 $11 {and White stays safe.} Bxc3 36. Qxc3) 35... Qb4 {[%emt 0:03:42] Threatens to win with ...Rxc4.} 36. Qc2 {[%emt 0:01:00]} Qa3 $2 {[%emt 0:03:04]} (36... Rxc4 $19 37. bxc4 Qxc4) 37. Rb1 $2 {[%emt 0:00:15]} (37. Rxc3 $1 $11 {and White is okay.} Bxc3 38. Qxc3) 37... Rb6 {[%emt 0:00:47][%cal Oc7c4]} 38. Bb5 {[%emt 0:01:04]} Rd6 {[%emt 0:00:49]} 39. Bc4 {[%emt 0:01:08]} (39. Rxd6 {was forced.} Qxd6 40. Rd1) 39... Rxd3 {[%emt 0:01:01]} 40. Qxd3 {[%emt 0:00:00]} Rc6 {[%emt 0:00:00] ...Rd6 is the strong threat.} 41. Qe2 {[%emt 0:06:46]} Rd6 $1 {[%emt 0:18:07]} 42. Rd1 {[%emt 0:07:57] Against Rd2} (42. Bd3) 42... Rxd1+ $2 {[%emt 0:01:10]} (42... Qb2 43. Rxd6 c2) 43. Qxd1 $19 {[%emt 0:00:04][%mdl 4096] Endgame KQB-KQB} Qb2 {[%emt 0:02:39]} 44. Bd3 {[%emt 0:00:13] [#] Inhibits c2.} Bd4 $1 {[%emt 0:00:18][%csl Gd4][%cal Rb2f2]} 45. Qc2 {[%emt 0:00:36] Dodges Qf2+} Qa1+ {[%emt 0:00:45]} 46. Qb1 {[%emt 0:00:16] [#]} Qa3 {[%emt 0:00:06] White must now prevent ...Bb6. Black has more active pieces.} 47. e5 $2 {[%emt 0:02:58][%mdl 8192]} (47. Ke2 $17) 47... Bb6 {[%emt 0:02:44] And now ...Qc5 would win.} ({Not} 47... Bxe5 48. Bxg6 Qb2 49. Be4 $15) 48. Ke1 {[%emt 0:11:17]} (48. Ke2 $142 Qc5 49. Qc1 Qf2+ 50. Kd1 c2+ 51. Qxc2 Qg1+ 52. Ke2 Qf2+ 53. Kd1 Qg1+ 54. Ke2 Qxg2+ 55. Ke1 Qg3+ 56. Ke2 Qh2+ 57. Kf1 Qg1+ 58. Ke2 Qh2+ 59. Kf1 Qh1+ 60. Ke2 Qh2+) 48... Qc5 {[%emt 0:00:21] ( -> ...Qf2+)} 49. Qc2 {[%emt 0:00:28] Prevents Qf2+.} Qe3+ {[%emt 0:03:32]} ({Weaker is} 49... Qxe5+ 50. Kd1 $17) 50. Be2 {[%emt 0:02:29]} Qf2+ {[%emt 0:00:11]} 51. Kd1 {[%emt 0:00:14]} Qg1+ {[%emt 0:00:07] A cool game by Javakhishvili.   Weighted Error Value: White=0.59/Black=0.35} 0-1

[Event "European Women-ch 2023"]
[Site "Petrovac"]
[Date "2023.03.18"]
[Round "1.6"]
[White "Koridze, Lile"]
[Black "Maltsevskaya, Aleksandra"]
[Result "0-1"]
[ECO "E91"]
[WhiteElo "2122"]
[BlackElo "2388"]
[Annotator "TA"]
[PlyCount "80"]
[EventDate "2023.03.15"]
[EventType "swiss"]
[EventCountry "MNE"]
[SourceTitle "playchess.com"]
[Source "ChessBase"]
[SourceQuality "1"]
[TimeControl "40/5400+30:1800+30"]

{[%evp 12,79,46,32,77,31,31,27,18,21,19,0,0,0,6,4,7,-30,0,0,15,20,12,18,40,35,32,41,41,45,34,43,45,0,8,14,15,14,25,-16,-19,-27,-32,-26,-18,-19,-20,-33,0,-107,-107,-165,-162,-481,-445,-475,-452,-423,-201,-195,-191,-29958,-12844,-29992,-29993,-29993,-29994,-29994,-29995,-29995]} 1. d4 {[%emt 0:00:07]} Nf6 {[%emt 0:01:00]} 2. c4 {[%emt 0:00:08]} g6 {[%emt 0:00:22]} 3. Nc3 {[%emt 0:00:06]} Bg7 {[%emt 0:00:06]} 4. e4 {[%emt 0:00:03]} d6 {[%emt 0:00:07]} 5. Nf3 {[%emt 0:00:05]} O-O {[%emt 0:00:08]} 6. Be2 {[%emt 0:00:03]} Na6 {[%emt 0:00:07]} 7. Bf4 {[%emt 0:01:13]} Qe8 {[%emt 0:07:25][%cal Oe7e5] E91: King's Indian: Classical: 6 Be2, unusual replies including 6...c5 and 6...Bg4.} 8. O-O {[%emt 0:08:25]} ({White should play} 8. e5 $16 Nd7 9. exd6) 8... e5 $14 {[%emt 0:00:36]} 9. dxe5 {[%emt 0:06:44]} Nh5 {[%emt 0:00:08][%csl LRe5,LRf4] White has an edge.} 10. Be3 {[%emt 0:02:29]} dxe5 {[%emt 0:00:08] [#]} 11. Qc1 $146 {[%emt 0:05:55]} ({Predecessor:} 11. c5 Nf4 12. a3 b6 13. b4 Bb7 14. Rc1 Rd8 15. Qc2 Nxe2+ 16. Qxe2 f5 17. c6 {1-0 Aloma Vidal,R (2388)-Stiri,A (2149) Athens Acropolis op 2008 (6)}) 11... c6 {[%emt 0:04:20]} 12. Rb1 {[%emt 0:06:51]} Qe7 {[%emt 0:01:21]} 13. Rd1 {[%emt 0:03:59]} Re8 {[%emt 0:01:50]} 14. b4 {[%emt 0:20:59][%mdl 64] [#] Deflection} Nxb4 {[%emt 0:02:04][%cal Oh5f4]} 15. c5 $1 {[%emt 0:05:41]} a5 {[%emt 0:01:09][%cal Oh5f4]} 16. a3 {[%emt 0:02:34]} Na6 {[%emt 0:00:06]} 17. Na4 {[%emt 0:02:00]} Nf4 {[%emt 0:11:56]} 18. Bxf4 {[%emt 0:06:35]} exf4 {[%emt 0:00:07]} 19. Nb6 {[%emt 0:01:47] A dynamic duo of knights.} Ra7 {[%emt 0:01:20]} 20. Qxf4 {[%emt 0:03:32]} Be6 {[%emt 0:01:03]} (20... Qxe4 $2 21. Qxe4 Rxe4 22. Rd8+ Bf8 23. Bxa6 $18) (20... Nxc5 $2 21. Qb8 Ra6 22. Nxc8 $18) 21. Bxa6 {[%emt 0:03:03]} Rxa6 {[%emt 0:00:07]} 22. Qe3 {[%emt 0:02:52]} a4 {[%emt 0:05:23]} (22... Bf8 $5 {[%cal Re7c5]}) 23. Rd6 {[%emt 0:07:38]} Bg4 {[%emt 0:09:55]} 24. h3 {[%emt 0:03:31]} Bxf3 {[%emt 0:04:07]} 25. Qxf3 {[%emt 0:00:04]} (25. gxf3 $5 {[%cal Rf3f4]} Be5 26. Rdd1 $14) 25... Ra5 {[%emt 0:13:08][%cal Ba6a5,Ba5c5,Bc5c4,Bc4b4][%mdl 32]} 26. Rd7 {[%emt 0:02:31]} Qe6 {[%emt 0:00:06]} 27. Rxb7 {[%emt 0:02:24]} Rxc5 {[%emt 0:04:52]} 28. Nxa4 {[%emt 0:01:14]} Rc4 {[%emt 0:00:06]} 29. Qb3 {[%emt 0:00:44]} Bd4 {[%emt 0:01:24][%cal Oe6e4]} (29... Rxe4 {simplifies} 30. Qxe6 R4xe6 31. Rb8 Bf8) 30. Rb4 {[%emt 0:01:26]} (30. Rd1 $11 {keeps the balance.}) 30... Rxb4 $1 $17 {[%emt 0:00:42]} 31. Qxb4 {[%emt 0:00:41]} (31. axb4 $17 Qxe4 32. Nc5) 31... Qxe4 $19 {[%emt 0:00:08] And now ...Qf4 would win.} 32. Rd1 $2 {[%emt 0:00:20] [#]} (32. Rf1) 32... Bxf2+ $1 {[%emt 0:00:08][%mdl 576] Decoy} 33. Kh1 {[%emt 0:00:33]} Qc2 {[%emt 0:01:01]} 34. Rf1 {[%emt 0:00:27]} Bg3 {[%emt 0:10:58] Inhibits Qf4.} (34... Qe2 $142 35. Rc1 Re3 36. Qb8+ Kg7 37. Qb2+ Qxb2 38. Nxb2 Rxa3) 35. Nb6 {[%emt 0:00:43]} Re4 $40 {[%emt 0:02:30][%mdl 128] Black goes for the king.} 36. Qa5 {[%emt 0:00:22]} (36. Qb1 $19 Re2 37. Qxc2 Rxc2 38. a4) 36... Qe2 {[%emt 0:01:42]} (36... Qd3 $142 37. Rg1 Bf4 38. Nd7 Qxd7 39. Ra1 Re3 40. Re1 Bc7 41. Qb4 Qd6 42. Kg1 Qxb4 {[%mdl 64] Remove Defender} 43. axb4 Rxe1+ 44. Kf2 Re4 45. h4 Rxh4 46. Ke2 Rxb4 47. Ke3 Rg4 48. Kf2 c5 49. Kf1 c4 50. Kf2 c3 51. Ke3 c2 52. Kd2 Rxg2+ 53. Kc3 c1=Q+ 54. Kd4 Rd2+ 55. Ke4 Qe1+ 56. Kf3 Qe2#) 37. Rg1 {[%emt 0:00:22]} Rh4 {[%emt 0:00:41] Black mates.} 38. Qa8+ {[%emt 0:00:33]} Kg7 {[%emt 0:00:06] Active counter play!} 39. Qc8 {[%emt 0:00:22]} f5 {[%emt 0:00:07]} 40. Qd7+ {[%emt 0:00:00]} Kh6 {[%emt 0:00:00] Weighted Error Value: White=0.48/Black=0.27 (precise)} 0-1

[Event "European Women-ch 2023"]
[Site "Petrovac"]
[Date "2023.03.18"]
[Round "1.6"]
[White "Manova, Ivana"]
[Black "Krasteva, Beloslava"]
[Result "0-1"]
[ECO "B80"]
[WhiteElo "1923"]
[BlackElo "2292"]
[Annotator "TA"]
[PlyCount "56"]
[EventDate "2023.03.15"]
[EventType "swiss"]
[EventCountry "MNE"]
[SourceTitle "playchess.com"]
[Source "ChessBase"]
[SourceQuality "1"]
[TimeControl "40/5400+30:1800+30"]

{[%evp 15,56,20,44,29,28,-5,4,-7,0,-43,-16,-33,-35,-54,-40,-55,-38,-49,-8,-56,-66,-97,-102,-88,-108,-130,-159,-136,-130,-318,-310,-300,-299,-732,-706,-1900,-951,-29985,-29986,-29986,-29987,-29997,-29998]} 1. e4 {[%emt 0:00:07]} c5 {[%emt 0:00:15]} 2. Nf3 {[%emt 0:00:24]} e6 {[%emt 0:00:41]} 3. g3 {[%emt 0:00:48]} Nc6 {[%emt 0:00:58]} 4. Bg2 {[%emt 0:00:56]} Nf6 {[%emt 0:00:24]} 5. Nc3 {[%emt 0:02:19]} a6 {[%emt 0:03:42]} 6. d4 {[%emt 0:05:51]} cxd4 {[%emt 0:00:26]} 7. Nxd4 {[%emt 0:00:13]} Qc7 {[%emt 0:01:08]} 8. O-O {[%emt 0:05:21]} d6 {[%emt 0:00:49] Recently 8...Nxd4 got a lot of attention.} 9. Bg5 {[%emt 0:18:17] B80: Sicilian Scheveningen: 6 g3 and 6 Be3, including English Attack.} Be7 {[%emt 0:02:35]} 10. Qd2 {[%emt 0:04:36]} O-O {[%emt 0:05:35] [#]} 11. Rad1 $146 {[%emt 0:05:47] The position is equal.} ({Predecessor:} 11. Rae1 Nxd4 12. Qxd4 h6 13. Bc1 e5 14. Qd2 b5 15. Nd5 Nxd5 16. exd5 Bf5 17. c3 Rac8 18. Kh1 Qc4 {0-1 Kuttner,J (1107)-Boni,R (1879) LSS No Engine Cup 205 Preliminary 0 2020}) 11... Rd8 {[%emt 0:03:38]} 12. Kh1 {[%emt 0:12:16]} h6 {[%emt 0:13:58]} 13. Nxc6 {[%emt 0:07:18]} bxc6 {[%emt 0:00:45][%cal Bb7c6,Bc6c5,Bc5c4][%mdl 32]} 14. Bxf6 {[%emt 0:02:41]} Bxf6 {[%emt 0:00:07]} 15. f4 {[%emt 0:00:42]} Rb8 {[%emt 0:03:50]} 16. b3 {[%emt 0:03:31]} c5 {[%emt 0:01:05]} 17. Rf3 {[%emt 0:06:02]} (17. f5 $11 {feels stronger.}) 17... Bb7 {[%emt 0:04:20]} 18. Rd3 {[%emt 0:03:40]} c4 {[%emt 0:04:52]} 19. Re3 {[%emt 0:05:25]} Rbc8 $36 {[%emt 0:10:50][%cal Bb8c8,Bc8d8,Bd8d5][%mdl 2080] ...cxb3 would be deadly. Black is really pushing.} 20. b4 {[%emt 0:00:38] [#]} d5 $1 {[%emt 0:10:03][%mdl 512]} 21. exd5 {[%emt 0:01:36]} exd5 {[%emt 0:00:38] ...d4 is the strong threat.} 22. Nxd5 {[%emt 0:11:07] [#]} (22. Ree1 $17 {keeps fighting.} d4 23. Ne4) 22... Rxd5 $1 $19 {[%emt 0:04:12][%mdl 512]} 23. Bxd5 {[%emt 0:00:34] And now Bg2 would win.} Rd8 {[%emt 0:00:17]} 24. Kg1 $2 {[%emt 0:01:28]} (24. Qg2 Qd7 25. a3) 24... Rxd5 {[%emt 0:02:31]} 25. Re8+ {[%emt 0:00:12]} Kh7 {[%emt 0:00:02]} 26. Qe2 {[%emt 0:00:41]} Rxd1+ {[%emt 0:00:34] Black mates.} 27. Qxd1 {[%emt 0:00:08]} Qc6 {[%emt 0:00:23][%csl Gb7][%cal Rc6g2]} 28. Qe2 {[%emt 0:01:11]} Bd4+ {[%emt 0:00:15] White did not feel at home in the position after the opening.   Weighted Error Value: White=1.04/Black=0.06 (flawless)} 0-1

[Event "European Women-ch 2023"]
[Site "Petrovac"]
[Date "2023.03.18"]
[Round "1.7"]
[White "Bulmaga, Irina"]
[Black "Pavlidou, Ekaterini"]
[Result "1-0"]
[ECO "B32"]
[WhiteElo "2438"]
[BlackElo "2178"]
[Annotator "TA"]
[PlyCount "76"]
[EventDate "2023.03.15"]
[EventType "swiss"]
[EventCountry "MNE"]
[SourceTitle "playchess.com"]
[Source "ChessBase"]
[SourceQuality "1"]
[TimeControl "40/5400+30:1800+30"]

{[%evp 11,76,32,36,26,39,36,53,51,52,50,46,45,50,32,44,34,28,28,68,69,70,59,97,81,86,71,82,0,52,41,41,41,41,35,39,39,39,27,39,0,51,50,59,41,81,66,96,96,88,86,76,47,47,47,47,45,107,107,170,176,775,182,1018,984,1466,1260,1100]} 1. e4 {[%emt 0:51:08]} c5 {[%emt 0:00:25]} 2. Nf3 {[%emt 0:00:09][%cal Bg1f3,Bf3d4,Bd4b5][%mdl 32]} Nc6 {[%emt 0:00:15]} 3. d4 {[%emt 0:00:18]} cxd4 {[%emt 0:00:10]} 4. Nxd4 {[%emt 0:00:06]} e5 {[%emt 0:00:15]} 5. Nb5 {[%emt 0:00:20]} d6 {[%emt 0:00:12]} 6. c4 {[%emt 0:00:24]} Be6 {[%emt 0:00:12]} 7. Bd3 {[%emt 0:00:24] B32: Sicilian: Löwenthal and Kalashnikov Variations.} g6 {[%emt 0:02:37] is now more promising than 7...Be7.} 8. O-O {[%emt 0:00:00]} a6 {[%emt 0:01:34]} 9. N5c3 {[%emt 0:00:00] White is slightly better.} Bg7 {[%emt 0:00:33]} 10. Nd5 {[%emt 0:00:00]} Bxd5 {[%emt 0:03:02]} 11. cxd5 {[%emt 0:00:00]} Nd4 {[%emt 0:00:41]} 12. Be3 {[%emt 0:00:00]} Nf6 {[%emt 0:02:01]} 13. Nd2 {[%emt 0:00:00]} O-O {[%emt 0:05:56]} 14. a4 {[%emt 0:00:00] [#]} Nh5 $146 {[%emt 0:05:50]} ({Predecessor:} 14... Nd7 15. a5 Nc5 16. Nc4 f5 17. Bxd4 exd4 18. exf5 Nxd3 19. Qxd3 Rxf5 20. Rae1 Qf8 {1-0 Cornette,M (2551)-Smith,S (2147) Olympiad-44 Chennai 2022 (1.2)}) 15. Re1 {[%emt 0:00:00]} Rc8 {[%emt 0:37:29]} 16. g3 {[%emt 0:00:00] Dodges Nf4} a5 {[%emt 0:03:06]} 17. Ra3 {[%emt 0:00:00]} Nf6 {[%emt 0:04:58]} 18. Nc4 {[%emt 0:02:17]} Rc5 {[%emt 0:04:55]} 19. Nd2 {[%emt 0:12:52]} ({White should try} 19. Ra2 $16) 19... Nd7 {[%emt 0:02:39]} ({Black should play} 19... Rc8 $1 $11) 20. Bxd4 {[%emt 0:03:04]} exd4 {[%emt 0:00:07]} 21. Nb3 {[%emt 0:00:34]} Rc8 {[%emt 0:01:46]} 22. Bb5 {[%emt 0:00:25]} Nc5 {[%emt 0:00:28]} 23. Nxc5 {[%emt 0:11:07]} Rxc5 {[%emt 0:00:19] Black is weak on the light squares} 24. Rd3 {[%emt 0:02:29]} Qb6 {[%emt 0:01:33]} 25. b3 {[%emt 0:03:50]} Rfc8 {[%emt 0:01:25]} (25... Rc3 $1 $11) 26. Bc4 $14 {[%emt 0:00:27]} R5c7 {[%emt 0:04:24]} 27. h4 {[%emt 0:00:39][%cal Bh2h4,Bh4h5][%mdl 32]} h6 {[%emt 0:01:56]} 28. h5 {[%emt 0:03:00]} Kh7 {[%emt 0:00:10]} 29. Qg4 {[%emt 0:00:55]} Qb4 {[%emt 0:04:03]} 30. Red1 {[%emt 0:00:40] White is more active.} Re8 {[%emt 0:04:52]} 31. Rf3 {[%emt 0:03:22][%cal Of3f7] [#] Rxf7! is the strong threat.} g5 $1 {[%emt 0:02:36]} 32. Rfd3 {[%emt 0:00:28]} Kh8 {[%emt 0:01:41]} 33. Kg2 {[%emt 0:02:27]} Rce7 {[%emt 0:02:52]} (33... Rg8 $14) 34. Bb5 $16 {[%emt 0:00:32]} Rxe4 {[%emt 0:01:04] [#]} (34... f5 $16 35. exf5 (35. Qxf5 Rf8 $16) 35... Rf8) 35. Qf3 $1 $18 {[%emt 0:00:16]} R8e5 {[%emt 0:01:17]} (35... R8e7 $2 36. Rc1 Re8 37. Bxe8 Rxe8 38. Qxf7 $18) (35... g4 36. Qf5 R4e5 37. Qxg4 (37. Qxf7 Rf8 $11) 37... Rf8) 36. Qxf7 $2 {[%emt 0:00:44]} (36. Rc1 {Threatening mate with Rc8+.} Re8 37. Bxe8 Rxe8 38. Qxf7) 36... Re1 $2 {[%emt 0:00:26]} (36... Qc5) 37. Rxd4 {[%emt 0:02:09]} ({Not} 37. Qxb7 Rf5 $16) 37... Qc3 {[%emt 0:00:38]} 38. Rc4 {[%emt 0:00:40]} (38. Qxb7 Rf5 39. Qb8+ (39. Rxe1 $2 Qxe1 40. Qc8+ Rf8 $19) 39... Rf8 $19) 38... Qxc4 {[%emt 0:01:03] Weighted Error Value: White=0.22 (precise) /Black=0.22 (precise)} 1-0

[Event "European Women-ch 2023"]
[Site "Petrovac"]
[Date "2023.03.18"]
[Round "1.7"]
[White "Beydullayeva, Govhar"]
[Black "Tsirulnik, Maritsa"]
[Result "1-0"]
[ECO "D37"]
[WhiteElo "2388"]
[BlackElo "2121"]
[Annotator "TA"]
[PlyCount "81"]
[EventDate "2023.03.15"]
[EventType "swiss"]
[EventCountry "MNE"]
[SourceTitle "playchess.com"]
[Source "ChessBase"]
[SourceQuality "1"]
[TimeControl "40/5400+30:1800+30"]

{[%evp 10,81,14,14,14,-12,27,-28,-18,-27,-28,-25,-17,-20,-20,-25,-17,-37,-37,-55,-45,-51,-39,-35,-29,-64,-20,-32,0,-52,-35,-51,50,23,16,18,17,28,23,11,24,34,36,25,26,25,43,15,45,25,43,51,96,0,0,0,0,0,0,0,0,0,510,499,468,435,508,536,505,505,779,783,777,777]} 1. d4 {[%emt 0:00:02]} Nf6 {[%emt 0:01:26]} 2. c4 {[%emt 0:00:05]} e6 {[%emt 0:00:06]} 3. Nf3 {[%emt 0:00:16]} d5 {[%emt 0:00:07]} 4. Nc3 {[%emt 0:00:13]} Nbd7 {[%emt 0:00:12]} 5. Bf4 {[%emt 0:02:11]} Bb4 {[%emt 0:00:36]} 6. e3 {[%emt 0:02:18]} c5 {[%emt 0:01:47] D37: Queen's Gambit Declined: 5 Bf4.} 7. Qc2 {[%emt 0:14:09] 7.Be2 is the modern continuation.} O-O {[%emt 0:27:26]} 8. Bd3 {[%emt 0:08:17]} (8. a3 $142 Bxc3+ 9. bxc3) 8... dxc4 {[%emt 0:05:55] Black has an edge.} 9. Bxc4 {[%emt 0:00:10]} cxd4 {[%emt 0:07:19]} 10. exd4 {[%emt 0:00:23] [#]} a6 $146 {[%emt 0:15:16]} ({Predecessor:} 10... Nb6 11. Bd3 Nbd5 12. Bd2 b6 13. O-O Bb7 14. Nxd5 Bxd2 15. Nxf6+ Qxf6 16. Nxd2 Rac8 17. Qa4 Qf4 18. Rad1 Rfd8 19. Nb3 Bxg2 {½-½ Rabah,R-Kneoo,K (2039) LIB-ch Beirut 2003 (8)}) 11. O-O {[%emt 0:09:16]} b5 {[%emt 0:02:07]} 12. Bd3 {[%emt 0:02:28]} Be7 {[%emt 0:07:16]} 13. Ng5 {[%emt 0:09:49][%cal Rd3h7]} g6 {[%emt 0:01:03]} 14. h4 {[%emt 0:10:17]} Bb7 {[%emt 0:01:08]} 15. Qe2 {[%emt 0:01:52]} Nb6 {[%emt 0:12:28][%cal Bd7b6,Bb6d5,Bd5e3][%mdl 32]} 16. Be5 {[%emt 0:08:34][%cal Oh4h5]} b4 {[%emt 0:00:43]} 17. Nd1 {[%emt 0:02:36]} Nbd5 {[%emt 0:01:16]} ({But not} 17... Qd5 18. Ne3 Qd8 19. Rac1 $11) 18. Ne3 {[%emt 0:01:57]} h6 {[%emt 0:02:04]} 19. Nf3 {[%emt 0:03:06]} (19. Nh3 $11) 19... Nxe3 $15 {[%emt 0:04:31]} 20. fxe3 {[%emt 0:01:00]} Ne4 {[%emt 0:01:52]} (20... Ng4 $15) 21. h5 {[%emt 0:02:07]} g5 {[%emt 0:01:31]} 22. Rac1 {[%emt 0:05:08]} f6 {[%emt 0:01:00]} 23. Bh2 {[%emt 0:02:45]} Bd6 {[%emt 0:00:19] Against Rc7} 24. Bxd6 {[%emt 0:03:01]} Qxd6 {[%emt 0:00:04]} 25. Bxe4 {[%emt 0:00:03]} Bxe4 {[%emt 0:00:06]} 26. Nd2 {[%emt 0:00:16]} Bb7 {[%emt 0:03:09]} 27. Rc5 {[%emt 0:02:43]} a5 {[%emt 0:00:33]} 28. Rfc1 {[%emt 0:02:17]} Rf7 {[%emt 0:01:43]} (28... f5 {looks sharper.} 29. Nc4 Qg3 30. Qf2 Qg4) 29. Nc4 {[%emt 0:01:41][%csl LRa5,LRd6]} Qd8 {[%emt 0:00:15]} 30. Qd3 {[%emt 0:01:27]} Rg7 {[%emt 0:00:14] Dodges Qg6} 31. Nd2 {[%emt 0:00:21]} (31. e4 $16) 31... f5 $11 {[%emt 0:01:05]} 32. Nc4 {[%emt 0:01:38]} g4 {[%emt 0:00:35]} 33. Qf1 $1 {[%emt 0:02:30]} Qh4 {[%emt 0:00:39] aiming for ...g3.} 34. Qf4 {[%emt 0:00:34] Prevents g3. Nd6 is the strong threat.} Qxh5 {[%emt 0:00:31]} 35. Rc7 {[%emt 0:01:12] Active counter play!} Bd5 $2 {[%emt 0:00:51][%mdl 8192]} (35... Rxc7 $11 {and Black is okay.} 36. Qxc7 Be4) 36. Rxg7+ $1 $18 {[%emt 0:01:13] White is clearly winning.} Kxg7 {[%emt 0:00:03]} 37. Qe5+ $1 {[%emt 0:00:10]} ({Less strong is} 37. Nb6 Ra7 $16) 37... Kg8 {[%emt 0:00:09] [#] ...Rc8 would be deadly.} 38. Nb6 {[%emt 0:00:05][%csl LRa8,LRd5][%cal Bc4b6,Bb6d7,Bd7f8][%mdl 32] Against Rc8. Black must now prevent Rc7.} Rf8 {[%emt 0:00:57] [#]} 39. Nd7 $1 {[%emt 0:00:56] White wants to mate with Nf6+.} Qh4 {[%emt 0:00:56] Repels Nf6+} (39... g3 $142 40. Qxg3+ Qg4 41. Qxg4+ fxg4 42. Nxf8 Kxf8) 40. Nxf8 {[%emt 0:00:00]} g3 {[%emt 0:00:00] [#]} 41. Qh8+ $3 {[%emt 0:00:50][%mdl 512] Beautiful play by Beydullayeva!   Weighted Error Value: White=0.13 (very precise) /Black=0.34} 1-0